[Event "*** SCC Grand Prix: Titled Tuesday Blitz"]
[Site "Chess.com"]
[Date "2020.10.06"]
[Round "7"]
[White "TrickyFortem"]
[Black "mirceaparligras"]
[Result "1-0"]
[WhiteElo "2479"]
[BlackElo "2636"]
[TimeControl "180+1"]
[EndTime "11:18:49 PDT"]
[Termination "TrickyFortem won on time"]

1. d4 {[%clk 0:02:56]} 1... Nf6 {[%clk 0:02:59.8]} 2. c4 {[%clk 0:02:55.5]} 2...
c5 {[%clk 0:03:00]} 3. d5 {[%clk 0:02:55.6]} 3... e6 {[%clk 0:03:00.4]} 4. Nc3
{[%clk 0:02:55.3]} 4... exd5 {[%clk 0:03:00.7]} 5. cxd5 {[%clk 0:02:56.2]} 5...
d6 {[%clk 0:03:01.2]} 6. e4 {[%clk 0:02:56.5]} 6... g6 {[%clk 0:03:01.6]} 7. Nf3
{[%clk 0:02:55.4]} 7... Bg7 {[%clk 0:03:01.5]} 8. Bd3 {[%clk 0:02:54.3]} 8... a6
{[%clk 0:02:57.9]} 9. O-O {[%clk 0:02:53.6]} 9... b5 {[%clk 0:02:53.2]} 10. h3
{[%clk 0:02:53.3]} 10... O-O {[%clk 0:02:52.5]} 11. Re1 {[%clk 0:02:53.2]} 11...
Nbd7 {[%clk 0:02:49.1]} 12. a4 {[%clk 0:02:52.8]} 12... c4 {[%clk 0:02:45.2]}
13. Bf1 {[%clk 0:02:52.9]} 13... Rb8 {[%clk 0:02:28.5]} 14. axb5 {[%clk
0:02:49.1]} 14... axb5 {[%clk 0:02:28.6]} 15. Bf4 {[%clk 0:02:46.7]} 15... Qb6
{[%clk 0:02:11.7]} 16. Nd4 {[%clk 0:02:42.5]} 16... Nxd5 {[%clk 0:01:30.8]} 17.
Nxd5 {[%clk 0:02:40.9]} 17... Qxd4 {[%clk 0:01:31]} 18. Qxd4 {[%clk 0:02:40.8]}
18... Bxd4 {[%clk 0:01:31.9]} 19. Bxd6 {[%clk 0:02:41.1]} 19... Bxb2 {[%clk
0:01:27]} 20. Rab1 {[%clk 0:02:41.2]} 20... c3 {[%clk 0:01:22.7]} 21. Bxb8
{[%clk 0:02:39.3]} 21... Nxb8 {[%clk 0:01:22.5]} 22. Bxb5 {[%clk 0:02:39.8]}
22... Ba6 {[%clk 0:01:10.9]} 23. Bf1 {[%clk 0:02:21.9]} 23... Bxf1 {[%clk
0:01:06.5]} 24. Kxf1 {[%clk 0:02:21.6]} 24... Nd7 {[%clk 0:00:56.7]} 25. Ke2
{[%clk 0:02:21.2]} 25... Nc5 {[%clk 0:00:47.8]} 26. f3 {[%clk 0:02:18.5]} 26...
Kg7 {[%clk 0:00:43.3]} 27. Rbc1 {[%clk 0:02:10.1]} 27... Na4 {[%clk 0:00:34.8]}
28. Rc2 {[%clk 0:02:09.1]} 28... Rb8 {[%clk 0:00:29]} 29. Rb1 {[%clk 0:02:06.2]}
29... Rb3 {[%clk 0:00:23.5]} 30. Kd1 {[%clk 0:02:03.9]} 30... Ra3 {[%clk
0:00:22]} 31. Ke2 {[%clk 0:01:52.8]} 31... h5 {[%clk 0:00:21.2]} 32. h4 {[%clk
0:01:52.1]} 32... Kf8 {[%clk 0:00:20.4]} 33. Kd3 {[%clk 0:01:51.3]} 33... Nc5+
{[%clk 0:00:11.6]} 34. Kc4 {[%clk 0:01:51.5]} 34... Ne6 {[%clk 0:00:09.5]} 35.
Nxc3 {[%clk 0:01:49]} 35... Bxc3 {[%clk 0:00:08]} 36. Rxc3 {[%clk 0:01:49.9]}
36... Ra2 {[%clk 0:00:08.6]} 37. g3 {[%clk 0:01:45.5]} 37... Rg2 {[%clk
0:00:08.3]} 38. f4 {[%clk 0:01:45.2]} 38... Re2 {[%clk 0:00:07.7]} 39. e5 {[%clk
0:01:44.5]} 39... Re4+ {[%clk 0:00:06.6]} 40. Kd3 {[%clk 0:01:43.5]} 40... Rd4+
{[%clk 0:00:07]} 41. Ke3 {[%clk 0:01:43.8]} 41... Ra4 {[%clk 0:00:06.9]} 42. Rb7
{[%clk 0:01:39.5]} 42... Ra8 {[%clk 0:00:05.7]} 43. Rb6 {[%clk 0:01:36.7]} 43...
Kg7 {[%clk 0:00:05.4]} 44. Rd6 {[%clk 0:01:36.9]} 44... Re8 {[%clk 0:00:04.1]}
45. Rd7 {[%clk 0:01:34.9]} 45... Rf8 {[%clk 0:00:03.6]} 46. Ra3 {[%clk
0:01:32.9]} 46... Kg8 {[%clk 0:00:03.8]} 47. Raa7 {[%clk 0:01:32.1]} 47... Ng7
{[%clk 0:00:02.9]} 48. Kf3 {[%clk 0:01:30.1]} 48... Nf5 {[%clk 0:00:02.8]} 49.
Ra3 {[%clk 0:01:25.9]} 49... Re8 {[%clk 0:00:01.6]} 50. Rad3 {[%clk 0:01:24.7]}
1-0

[Event "*** SCC Grand Prix: Titled Tuesday Blitz"]
[Site "Chess.com"]
[Date "2020.10.06"]
[Round "7"]
[White "denispopov"]
[Black "Butterfly"]
[Result "0-1"]
[WhiteElo "2003"]
[BlackElo "2411"]
[TimeControl "180+1"]
[EndTime "11:18:50 PDT"]
[Termination "Butterfly won by checkmate"]

1. e4 {[%clk 0:02:50.3]} 1... d5 {[%clk 0:02:57.3]} 2. exd5 {[%clk 0:02:50.1]}
2... Nf6 {[%clk 0:02:53.3]} 3. Bb5+ {[%clk 0:02:45.8]} 3... Bd7 {[%clk
0:02:50.1]} 4. Bc4 {[%clk 0:02:44]} 4... Bg4 {[%clk 0:02:43.4]} 5. f3 {[%clk
0:02:42.1]} 5... Bf5 {[%clk 0:02:42.1]} 6. Nc3 {[%clk 0:02:40.1]} 6... g6 {[%clk
0:02:35.8]} 7. Nge2 {[%clk 0:02:37]} 7... Bg7 {[%clk 0:02:35.6]} 8. d3 {[%clk
0:02:35.1]} 8... O-O {[%clk 0:02:32.8]} 9. Bg5 {[%clk 0:02:31.4]} 9... c6 {[%clk
0:02:28.9]} 10. dxc6 {[%clk 0:02:29]} 10... Nxc6 {[%clk 0:02:29.4]} 11. Qd2
{[%clk 0:02:28.1]} 11... a6 {[%clk 0:02:27.3]} 12. Bh6 {[%clk 0:02:19.4]} 12...
b5 {[%clk 0:02:24.5]} 13. Bb3 {[%clk 0:02:17.1]} 13... Bxh6 {[%clk 0:02:06.6]}
14. Qxh6 {[%clk 0:02:14.2]} 14... Nd4 {[%clk 0:02:04.7]} 15. Nxd4 {[%clk
0:02:10]} 15... Qxd4 {[%clk 0:02:05.6]} 16. O-O-O {[%clk 0:01:51]} 16... Rfc8
{[%clk 0:02:02.5]} 17. g4 {[%clk 0:01:38.6]} 17... Bd7 {[%clk 0:02:01.2]} 18.
Ne4 {[%clk 0:01:26.7]} 18... a5 {[%clk 0:01:51.4]} 19. Nxf6+ {[%clk 0:01:19.6]}
19... exf6 {[%clk 0:01:49.1]} 20. Bxf7+ {[%clk 0:01:18.1]} 20... Kxf7 {[%clk
0:01:47.1]} 21. Qxh7+ {[%clk 0:01:11.8]} 21... Ke6 {[%clk 0:01:46.8]} 22. Rhe1+
{[%clk 0:01:08.2]} 22... Kd6 {[%clk 0:01:46.9]} 23. Qxg6 {[%clk 0:01:04.1]}
23... Qf4+ {[%clk 0:01:14.1]} 24. Kb1 {[%clk 0:01:00]} 24... Rg8 {[%clk
0:00:56.4]} 25. Qf7 {[%clk 0:00:57.4]} 25... Rae8 {[%clk 0:00:53.6]} 26. Re4
{[%clk 0:00:40.4]} 26... Qxf3 {[%clk 0:00:43.3]} 27. Rd4+ {[%clk 0:00:39.6]}
27... Kc5 {[%clk 0:00:43.4]} 28. b4+ {[%clk 0:00:26]} 28... Kxd4 {[%clk
0:00:41.1]} 29. Qxd7+ {[%clk 0:00:24.3]} 29... Ke3 {[%clk 0:00:32.9]} 30. Re1+
{[%clk 0:00:21.6]} 30... Kd2 {[%clk 0:00:32.9]} 31. Rxe8 {[%clk 0:00:17.5]}
31... Qf1+ {[%clk 0:00:32.9]} 32. Kb2 {[%clk 0:00:13.9]} 32... Qc1+ {[%clk
0:00:33.3]} 33. Kb3 {[%clk 0:00:11.1]} 33... a4# {[%clk 0:00:33.4]} 0-1

[Event "*** SCC Grand Prix: Titled Tuesday Blitz"]
[Site "Chess.com"]
[Date "2020.10.06"]
[Round "7"]
[White "Sesleria"]
[Black "Zemerovv"]
[Result "0-1"]
[WhiteElo "2099"]
[BlackElo "2270"]
[TimeControl "180+1"]
[EndTime "11:18:52 PDT"]
[Termination "Zemerovv won by resignation"]

1. d4 {[%clk 0:02:59.8]} 1... e6 {[%clk 0:02:59.5]} 2. e4 {[%clk 0:02:57.7]}
2... b6 {[%clk 0:03:00.4]} 3. Nf3 {[%clk 0:02:56.9]} 3... Bb7 {[%clk 0:03:00.4]}
4. Bd3 {[%clk 0:02:56.9]} 4... Nf6 {[%clk 0:02:59.9]} 5. Qe2 {[%clk 0:02:56.7]}
5... d5 {[%clk 0:02:59.6]} 6. Nbd2 {[%clk 0:02:54.3]} 6... dxe4 {[%clk
0:02:54.4]} 7. Nxe4 {[%clk 0:02:54.1]} 7... Nbd7 {[%clk 0:02:54.1]} 8. Bg5
{[%clk 0:02:49.7]} 8... Be7 {[%clk 0:02:53.6]} 9. Bxf6 {[%clk 0:02:47.6]} 9...
Nxf6 {[%clk 0:02:52.7]} 10. O-O-O {[%clk 0:02:38.9]} 10... O-O {[%clk 0:02:48]}
11. Kb1 {[%clk 0:02:37.1]} 11... Nxe4 {[%clk 0:02:46.5]} 12. Bxe4 {[%clk
0:02:36.9]} 12... Bxe4 {[%clk 0:02:46]} 13. Qxe4 {[%clk 0:02:36.8]} 13... Qd5
{[%clk 0:02:45.9]} 14. Rhe1 {[%clk 0:02:12.4]} 14... Rad8 {[%clk 0:02:44.4]} 15.
Qg4 {[%clk 0:02:03.5]} 15... Bf6 {[%clk 0:02:41.2]} 16. Ne5 {[%clk 0:01:57.2]}
16... c5 {[%clk 0:02:32.2]} 17. dxc5 {[%clk 0:01:30.2]} 17... Qxc5 {[%clk
0:02:14.5]} 18. Nd7 {[%clk 0:01:24.8]} 18... Rxd7 {[%clk 0:02:14.4]} 19. Rxd7
{[%clk 0:01:24]} 19... Qb5 {[%clk 0:02:14.1]} 20. Rd4 {[%clk 0:01:02.7]} 20...
Bxd4 {[%clk 0:02:06.9]} 21. Qxd4 {[%clk 0:01:02.5]} 21... Qg5 {[%clk 0:01:55.2]}
22. f4 {[%clk 0:00:47.3]} 22... Qh4 {[%clk 0:01:45.2]} 23. Rd1 {[%clk
0:00:22.9]} 23... Qxh2 {[%clk 0:01:42.9]} 24. g4 {[%clk 0:00:21.7]} 24... h5
{[%clk 0:01:39.8]} 25. g5 {[%clk 0:00:18.6]} 25... g6 {[%clk 0:01:37.9]} 26. a3
{[%clk 0:00:17.5]} 26... Qe2 {[%clk 0:01:33.8]} 27. Rd2 {[%clk 0:00:15.9]} 27...
Qf1+ {[%clk 0:01:30.5]} 28. Rd1 {[%clk 0:00:15.6]} 28... Qg2 {[%clk 0:01:29.7]}
29. Qf6 {[%clk 0:00:11.5]} 29... Qa8 {[%clk 0:01:15.4]} 30. Rd7 {[%clk
0:00:08.8]} 30... Qh1+ {[%clk 0:01:09.4]} 31. Ka2 {[%clk 0:00:07.5]} 31... Qc6
{[%clk 0:01:08.4]} 32. Rd2 {[%clk 0:00:02.5]} 32... Qc4+ {[%clk 0:01:03.6]} 33.
b3 {[%clk 0:00:02.8]} 33... Qc7 {[%clk 0:01:01.5]} 34. Kb2 {[%clk 0:00:03.2]}
34... Rc8 {[%clk 0:00:56.1]} 35. Rh2 {[%clk 0:00:02.6]} 35... b5 {[%clk
0:00:52.2]} 36. Rd2 {[%clk 0:00:02.8]} 36... a5 {[%clk 0:00:51.9]} 37. f5 {[%clk
0:00:02.5]} 37... exf5 {[%clk 0:00:50.8]} 38. Qe5 {[%clk 0:00:02.2]} 0-1

[Event "*** SCC Grand Prix: Titled Tuesday Blitz"]
[Site "Chess.com"]
[Date "2020.10.06"]
[Round "7"]
[White "annamaja"]
[Black "awesomevishesh"]
[Result "0-1"]
[WhiteElo "2262"]
[BlackElo "2425"]
[TimeControl "180+1"]
[EndTime "11:18:57 PDT"]
[Termination "awesomevishesh won on time"]

1. e4 {[%clk 0:03:00.9]} 1... c5 {[%clk 0:02:59.8]} 2. Nf3 {[%clk 0:03:00.6]}
2... d6 {[%clk 0:02:59.6]} 3. d4 {[%clk 0:03:00.7]} 3... cxd4 {[%clk 0:03:00.1]}
4. Nxd4 {[%clk 0:03:01.6]} 4... Nf6 {[%clk 0:03:00.2]} 5. Nc3 {[%clk 0:03:02.3]}
5... a6 {[%clk 0:03:00.3]} 6. Be2 {[%clk 0:03:00.5]} 6... e5 {[%clk 0:02:59.9]}
7. Nb3 {[%clk 0:03:00.3]} 7... Be7 {[%clk 0:02:59.5]} 8. O-O {[%clk 0:03:00.3]}
8... O-O {[%clk 0:02:58.4]} 9. Kh1 {[%clk 0:03:00.5]} 9... Be6 {[%clk
0:02:58.1]} 10. f4 {[%clk 0:03:00.4]} 10... exf4 {[%clk 0:02:56.9]} 11. Bxf4
{[%clk 0:03:01.3]} 11... Nc6 {[%clk 0:02:56.9]} 12. Nd4 {[%clk 0:02:56.6]} 12...
Ne5 {[%clk 0:02:45.3]} 13. Qe1 {[%clk 0:02:49.2]} 13... Qc7 {[%clk 0:02:40.7]}
14. Rd1 {[%clk 0:02:42.7]} 14... Rfe8 {[%clk 0:02:35.2]} 15. Qg3 {[%clk
0:02:26.9]} 15... b5 {[%clk 0:02:09.8]} 16. Bh6 {[%clk 0:01:23.1]} 16... Ng6
{[%clk 0:02:05.6]} 17. Bg5 {[%clk 0:01:10.7]} 17... b4 {[%clk 0:02:00.1]} 18.
Nd5 {[%clk 0:00:59.5]} 18... Bxd5 {[%clk 0:01:57]} 19. exd5 {[%clk 0:00:58]}
19... Ne4 {[%clk 0:01:56.6]} 20. Qg4 {[%clk 0:00:40.4]} 20... Bxg5 {[%clk
0:01:55.5]} 21. Bd3 {[%clk 0:00:36.3]} 21... h5 {[%clk 0:01:23]} 22. Qf5 {[%clk
0:00:13.4]} 22... Re5 {[%clk 0:01:18.2]} 23. Qh3 {[%clk 0:00:07.6]} 23... Nf4
{[%clk 0:01:13.8]} 24. Qf3 {[%clk 0:00:06.5]} 24... Rae8 {[%clk 0:01:08.9]} 25.
g3 {[%clk 0:00:03.4]} 25... Ng6 {[%clk 0:01:03]} 26. Qxh5 {[%clk 0:00:03]} 26...
Be3 {[%clk 0:00:56.3]} 27. Nf5 {[%clk 0:00:02.5]} 27... Nf2+ {[%clk 0:00:51.2]}
28. Rxf2 {[%clk 0:00:02.4]} 28... Bxf2 {[%clk 0:00:52.1]} 29. Rf1 {[%clk
0:00:02.7]} 29... Re1 {[%clk 0:00:47.9]} 30. Kg2 {[%clk 0:00:02.7]} 30... Rxf1
{[%clk 0:00:47.7]} 31. Kxf1 {[%clk 0:00:02.5]} 31... Ba7 {[%clk 0:00:41.4]} 32.
Nh4 {[%clk 0:00:02.4]} 32... Qc5 {[%clk 0:00:38]} 0-1

[Event "*** SCC Grand Prix: Titled Tuesday Blitz"]
[Site "Chess.com"]
[Date "2020.10.06"]
[Round "7"]
[White "Klavdia_Nik"]
[Black "Trickov"]
[Result "0-1"]
[WhiteElo "2148"]
[BlackElo "2378"]
[TimeControl "180+1"]
[EndTime "11:18:57 PDT"]
[Termination "Trickov won by resignation"]

1. Nf3 {[%clk 0:02:51.5]} 1... d5 {[%clk 0:02:59.4]} 2. c4 {[%clk 0:02:49.9]}
2... c6 {[%clk 0:02:59.1]} 3. b3 {[%clk 0:02:49.3]} 3... Nf6 {[%clk 0:02:56.8]}
4. Bb2 {[%clk 0:02:49.7]} 4... Bf5 {[%clk 0:02:57.3]} 5. g3 {[%clk 0:02:49.8]}
5... Nbd7 {[%clk 0:02:56.9]} 6. Bg2 {[%clk 0:02:50.4]} 6... e6 {[%clk
0:02:57.1]} 7. O-O {[%clk 0:02:51]} 7... h6 {[%clk 0:02:56.7]} 8. d3 {[%clk
0:02:51.6]} 8... Bc5 {[%clk 0:02:55.7]} 9. Nbd2 {[%clk 0:02:50.1]} 9... O-O
{[%clk 0:02:54.8]} 10. a3 {[%clk 0:02:49.5]} 10... a5 {[%clk 0:02:53.2]} 11. Qc2
{[%clk 0:02:39.6]} 11... Qe7 {[%clk 0:02:46.8]} 12. e4 {[%clk 0:02:30.1]} 12...
dxe4 {[%clk 0:02:45.2]} 13. dxe4 {[%clk 0:02:30.6]} 13... Bh7 {[%clk 0:02:45.1]}
14. h3 {[%clk 0:02:18.4]} 14... Rfd8 {[%clk 0:02:32.9]} 15. Rfe1 {[%clk
0:02:18.3]} 15... Nb6 {[%clk 0:02:02.7]} 16. Nf1 {[%clk 0:02:13.9]} 16... Nc8
{[%clk 0:01:42.8]} 17. g4 {[%clk 0:02:08.6]} 17... Nd6 {[%clk 0:01:41.8]} 18.
Ng3 {[%clk 0:02:07.6]} 18... Nde8 {[%clk 0:01:33.5]} 19. Qe2 {[%clk 0:01:52.4]}
19... Qc7 {[%clk 0:01:21.2]} 20. Rad1 {[%clk 0:01:35.9]} 20... Qxg3 {[%clk
0:01:10.7]} 21. Be5 {[%clk 0:01:09.2]} 21... Qxf2+ {[%clk 0:00:59.6]} 22. Qxf2
{[%clk 0:01:06.2]} 22... Bxf2+ {[%clk 0:00:59.5]} 23. Kxf2 {[%clk 0:01:04.7]}
23... Nxe4+ {[%clk 0:00:59.8]} 24. Ke3 {[%clk 0:00:59.7]} 24... f6 {[%clk
0:00:58.7]} 25. Bb2 {[%clk 0:00:54]} 25... Nc5 {[%clk 0:00:52.3]} 26. Nd4 {[%clk
0:00:37.8]} 26... e5 {[%clk 0:00:48.6]} 27. Nf5 {[%clk 0:00:36.5]} 27... Bxf5
{[%clk 0:00:46.1]} 28. gxf5 {[%clk 0:00:36.1]} 28... Nxb3 {[%clk 0:00:45.4]} 29.
Bf3 {[%clk 0:00:17.6]} 29... Nd6 {[%clk 0:00:40.2]} 30. Bg4 {[%clk 0:00:16.5]}
30... Nxc4+ {[%clk 0:00:39.3]} 31. Ke4 {[%clk 0:00:11.1]} 31... Nxb2 {[%clk
0:00:38.1]} 32. Rxd8+ {[%clk 0:00:09.6]} 32... Rxd8 {[%clk 0:00:37.3]} 0-1

[Event "*** SCC Grand Prix: Titled Tuesday Blitz"]
[Site "Chess.com"]
[Date "2020.10.06"]
[Round "7"]
[White "vovachesss"]
[Black "chenxiaoyuer"]
[Result "1-0"]
[WhiteElo "2679"]
[BlackElo "2491"]
[TimeControl "180+1"]
[EndTime "11:18:59 PDT"]
[Termination "vovachesss won by resignation"]

1. c4 {[%clk 0:02:59.5]} 1... Nf6 {[%clk 0:02:59.9]} 2. Nc3 {[%clk 0:02:59.4]}
2... g6 {[%clk 0:02:59.6]} 3. d4 {[%clk 0:02:56.1]} 3... d6 {[%clk 0:02:59.9]}
4. e4 {[%clk 0:02:55.2]} 4... Bg7 {[%clk 0:03:00.5]} 5. h3 {[%clk 0:02:53]} 5...
O-O {[%clk 0:03:00.1]} 6. Be3 {[%clk 0:02:48.8]} 6... c5 {[%clk 0:03:00]} 7. d5
{[%clk 0:02:45]} 7... e6 {[%clk 0:02:59.4]} 8. Nf3 {[%clk 0:02:39.9]} 8... exd5
{[%clk 0:02:58.1]} 9. cxd5 {[%clk 0:02:31.8]} 9... Re8 {[%clk 0:02:54.7]} 10.
Bd3 {[%clk 0:02:31.5]} 10... Nfd7 {[%clk 0:01:55.6]} 11. O-O {[%clk 0:02:07.4]}
11... Ne5 {[%clk 0:01:55.4]} 12. Nxe5 {[%clk 0:02:00.2]} 12... Bxe5 {[%clk
0:01:56.3]} 13. f4 {[%clk 0:01:52.1]} 13... Bg7 {[%clk 0:01:52.8]} 14. Qc2
{[%clk 0:01:50.9]} 14... Na6 {[%clk 0:01:38.9]} 15. a3 {[%clk 0:01:33.1]} 15...
Nc7 {[%clk 0:01:38]} 16. Rae1 {[%clk 0:01:31.7]} 16... Bd7 {[%clk 0:01:31.3]}
17. Kh1 {[%clk 0:01:11.1]} 17... b5 {[%clk 0:01:28.1]} 18. Bf2 {[%clk
0:01:11.3]} 18... a5 {[%clk 0:01:15.2]} 19. Bg3 {[%clk 0:01:08]} 19... c4 {[%clk
0:00:42.3]} 20. Be2 {[%clk 0:01:04.8]} 20... Na6 {[%clk 0:00:41.6]} 21. a4
{[%clk 0:00:48.2]} 21... b4 {[%clk 0:00:35.1]} 22. Nb5 {[%clk 0:00:48.4]} 22...
c3 {[%clk 0:00:29.5]} 23. Nxd6 {[%clk 0:00:45.6]} 23... Bxa4 {[%clk 0:00:26.6]}
24. Qxa4 {[%clk 0:00:37]} 24... Qxd6 {[%clk 0:00:25.8]} 25. e5 {[%clk
0:00:32.5]} 25... Qb6 {[%clk 0:00:17.8]} 26. bxc3 {[%clk 0:00:29.2]} 26... bxc3
{[%clk 0:00:15.3]} 27. Bf2 {[%clk 0:00:29.2]} 27... Qb4 {[%clk 0:00:13.4]} 28.
Bb5 {[%clk 0:00:20.1]} 28... Reb8 {[%clk 0:00:09.5]} 29. Bc6 {[%clk 0:00:20.3]}
29... Ra7 {[%clk 0:00:05.6]} 30. Bxa7 {[%clk 0:00:18.9]} 1-0

[Event "*** SCC Grand Prix: Titled Tuesday Blitz"]
[Site "Chess.com"]
[Date "2020.10.06"]
[Round "7"]
[White "ErikRonka"]
[Black "PauloCesarCosta_sad"]
[Result "1-0"]
[WhiteElo "2442"]
[BlackElo "2281"]
[TimeControl "180+1"]
[EndTime "11:19:02 PDT"]
[Termination "ErikRonka won on time"]

1. d4 {[%clk 0:03:00.9]} 1... d5 {[%clk 0:02:58.8]} 2. e4 {[%clk 0:03:00.6]}
2... dxe4 {[%clk 0:02:57]} 3. Nc3 {[%clk 0:03:01.1]} 3... Nf6 {[%clk 0:02:53.9]}
4. f3 {[%clk 0:03:01.7]} 4... exf3 {[%clk 0:02:52.2]} 5. Nxf3 {[%clk 0:03:02.6]}
5... Bg4 {[%clk 0:02:49]} 6. h3 {[%clk 0:03:02]} 6... Bxf3 {[%clk 0:02:48.8]} 7.
Qxf3 {[%clk 0:03:01.5]} 7... c6 {[%clk 0:02:49.7]} 8. g4 {[%clk 0:03:01]} 8...
e6 {[%clk 0:02:48.5]} 9. g5 {[%clk 0:03:00.2]} 9... Nd5 {[%clk 0:02:48.5]} 10.
Bd2 {[%clk 0:02:57.1]} 10... Nxc3 {[%clk 0:02:47.4]} 11. Qxc3 {[%clk 0:02:53.1]}
11... Na6 {[%clk 0:02:43.9]} 12. a3 {[%clk 0:02:52]} 12... Nc7 {[%clk
0:02:40.9]} 13. O-O-O {[%clk 0:02:51.9]} 13... Qd7 {[%clk 0:02:29.1]} 14. Bg2
{[%clk 0:02:50.3]} 14... O-O-O {[%clk 0:02:27.3]} 15. Rhf1 {[%clk 0:02:48.3]}
15... Bd6 {[%clk 0:02:22.7]} 16. Qf3 {[%clk 0:02:43.9]} 16... Rhf8 {[%clk
0:02:20.5]} 17. Qh5 {[%clk 0:02:40.2]} 17... Nd5 {[%clk 0:02:02.9]} 18. Qxh7
{[%clk 0:02:38.3]} 18... g6 {[%clk 0:01:48]} 19. Qh4 {[%clk 0:02:36.5]} 19...
Qe7 {[%clk 0:01:45]} 20. Qg4 {[%clk 0:02:36.1]} 20... Qc7 {[%clk 0:01:16.9]} 21.
c4 {[%clk 0:02:34.4]} 21... Nf4 {[%clk 0:01:14.6]} 22. Bxf4 {[%clk 0:02:33.9]}
22... Bxf4+ {[%clk 0:01:14.6]} 23. Qxf4 {[%clk 0:02:33.3]} 23... Qa5 {[%clk
0:00:26.6]} 24. Qd2 {[%clk 0:02:25.6]} 24... Qa4 {[%clk 0:00:15.6]} 25. Qc2
{[%clk 0:02:25.2]} 25... Qa5 {[%clk 0:00:15.2]} 26. h4 {[%clk 0:02:24.5]} 26...
Rh8 {[%clk 0:00:14.6]} 27. Rf4 {[%clk 0:02:17]} 27... Rd7 {[%clk 0:00:14]} 28.
Rdf1 {[%clk 0:02:15.8]} 28... Rh7 {[%clk 0:00:13.3]} 29. Bh3 {[%clk 0:02:09.4]}
29... a6 {[%clk 0:00:12.7]} 30. Qc3 {[%clk 0:01:58.4]} 30... Qa4 {[%clk
0:00:11.1]} 31. Qc2 {[%clk 0:01:49.7]} 31... Qa5 {[%clk 0:00:10.6]} 32. Rxf7
{[%clk 0:01:33.5]} 32... Rhxf7 {[%clk 0:00:08.7]} 33. Rxf7 {[%clk 0:01:30.8]}
33... Rxf7 {[%clk 0:00:08.1]} 34. Bxe6+ {[%clk 0:01:30.4]} 34... Kb8 {[%clk
0:00:07.8]} 35. Bxf7 {[%clk 0:01:28.7]} 35... Qe1+ {[%clk 0:00:07.6]} 36. Qd1
{[%clk 0:01:28.5]} 36... Qxh4 {[%clk 0:00:03.7]} 37. Qd2 {[%clk 0:01:27.4]}
37... Qh1+ {[%clk 0:00:03.1]} 38. Kc2 {[%clk 0:01:26.8]} 38... Qe4+ {[%clk
0:00:04]} 39. Qd3 {[%clk 0:01:24.5]} 39... Qg2+ {[%clk 0:00:03.1]} 40. Kc3
{[%clk 0:01:24.3]} 40... Qxg5 {[%clk 0:00:02.3]} 41. Bxg6 {[%clk 0:01:23.5]}
41... Qa5+ {[%clk 0:00:02.1]} 42. Kc2 {[%clk 0:01:23.6]} 42... Qa4+ {[%clk
0:00:02.5]} 43. Kb1 {[%clk 0:01:22.7]} 43... Qa5 {[%clk 0:00:02.7]} 44. d5
{[%clk 0:01:21.8]} 44... Qe1+ {[%clk 0:00:02.6]} 45. Ka2 {[%clk 0:01:21.4]}
45... cxd5 {[%clk 0:00:02.9]} 46. cxd5 {[%clk 0:01:22.3]} 46... Qe7 {[%clk
0:00:02.3]} 47. d6 {[%clk 0:01:21.8]} 47... Qd7 {[%clk 0:00:02.7]} 48. Bf5
{[%clk 0:01:21.2]} 48... Qc6 {[%clk 0:00:02.4]} 49. d7 {[%clk 0:01:21]} 49...
Qc4+ {[%clk 0:00:02.5]} 50. Qxc4 {[%clk 0:01:20.5]} 50... b5 {[%clk 0:00:03.4]}
51. d8=R+ {[%clk 0:01:15.1]} 1-0

[Event "*** SCC Grand Prix: Titled Tuesday Blitz"]
[Site "Chess.com"]
[Date "2020.10.06"]
[Round "7"]
[White "Sibelephant"]
[Black "Durarbayli"]
[Result "1-0"]
[WhiteElo "3096"]
[BlackElo "2808"]
[TimeControl "180+1"]
[EndTime "11:19:06 PDT"]
[Termination "Sibelephant won on time"]

1. d4 {[%clk 0:02:59.9]} 1... Nf6 {[%clk 0:02:59.2]} 2. Bg5 {[%clk 0:03:00]}
2... e6 {[%clk 0:02:47.3]} 3. Nd2 {[%clk 0:02:59.7]} 3... c5 {[%clk 0:02:46.1]}
4. e3 {[%clk 0:02:59.7]} 4... Nc6 {[%clk 0:02:43.9]} 5. Ngf3 {[%clk 0:02:55.9]}
5... h6 {[%clk 0:02:41.8]} 6. Bh4 {[%clk 0:02:55.7]} 6... d5 {[%clk 0:02:39.8]}
7. c3 {[%clk 0:02:54.7]} 7... Qb6 {[%clk 0:02:33.2]} 8. Rb1 {[%clk 0:02:50.9]}
8... Be7 {[%clk 0:02:17.5]} 9. Bd3 {[%clk 0:02:49.7]} 9... O-O {[%clk
0:02:09.7]} 10. O-O {[%clk 0:02:49]} 10... Re8 {[%clk 0:02:09.8]} 11. Qe2 {[%clk
0:02:44.3]} 11... c4 {[%clk 0:01:59]} 12. Bc2 {[%clk 0:02:44]} 12... Qa5 {[%clk
0:01:59]} 13. a3 {[%clk 0:02:43.1]} 13... b5 {[%clk 0:01:58.6]} 14. e4 {[%clk
0:02:42.5]} 14... dxe4 {[%clk 0:01:50.6]} 15. Nxe4 {[%clk 0:02:13.5]} 15... Nd5
{[%clk 0:01:49.6]} 16. Bxe7 {[%clk 0:02:13.1]} 16... Rxe7 {[%clk 0:01:39.5]} 17.
Nc5 {[%clk 0:02:11.1]} 17... Qc7 {[%clk 0:01:32.8]} 18. Rfe1 {[%clk 0:02:03.5]}
18... Bb7 {[%clk 0:01:24.7]} 19. Qe4 {[%clk 0:01:30.5]} 19... Nf6 {[%clk
0:01:23]} 20. Qh4 {[%clk 0:01:31.1]} 20... Rd8 {[%clk 0:01:14.7]} 21. Qg3 {[%clk
0:01:07.1]} 21... Qxg3 {[%clk 0:00:34.8]} 22. hxg3 {[%clk 0:01:06.8]} 22... Rc7
{[%clk 0:00:30.1]} 23. Bd1 {[%clk 0:00:43.7]} 23... a5 {[%clk 0:00:29.3]} 24. a4
{[%clk 0:00:40.3]} 24... b4 {[%clk 0:00:28.9]} 25. Be2 {[%clk 0:00:40.9]} 25...
Nd7 {[%clk 0:00:17.8]} 26. Nxb7 {[%clk 0:00:37.7]} 26... Rxb7 {[%clk 0:00:18.7]}
27. Bxc4 {[%clk 0:00:38.3]} 27... Rdb8 {[%clk 0:00:11.1]} 28. Bb5 {[%clk
0:00:37.9]} 28... Na7 {[%clk 0:00:11.6]} 29. c4 {[%clk 0:00:38.4]} 29... Nxb5
{[%clk 0:00:08.6]} 30. axb5 {[%clk 0:00:37.9]} 30... b3 {[%clk 0:00:08.9]} 31.
Ra1 {[%clk 0:00:33.1]} 31... Rc8 {[%clk 0:00:07.7]} 32. Nd2 {[%clk 0:00:32.1]}
32... Nb6 {[%clk 0:00:06]} 33. c5 {[%clk 0:00:31.2]} 1-0